{"text_format":"1","workbook":"xlsx","n_sheets":11,"sheets":["Лист с формой","Таблица 1","Таблица 2","Таблица 3","Таблица 4","Определение  Iрпв по табл.1 ","Определение  Iкрд по табл.1","Таблица со статистикой","Таблица со статистикой по РФ","Iрпв для производств.объектов","Iкрд для производств.объектов"],"not_rendered":{"charts":0,"images":0,"macros":1,"external_links":0,"defined_names":4,"comments":0,"pivot_tables":0},"unopened":[],"bounds":{"document_bytes":16777216,"sheet_cells":100000,"rows_first":2000,"rows_last":500,"rows_between":2000,"halvings":0,"cell_chars":16384,"cell_head_chars":4096},"cells_cut":0,"cells_raw":0,"read":"whole","date_system":"1900"}

{"sheet":"Лист с формой","index":0,"n_rows":0,"n_cols":0,"rows_kept":0,"cut":false,"hidden":false,"merged":[]}

{"sheet":"Таблица 1","index":1,"n_rows":34,"n_cols":14,"rows_kept":34,"cut":false,"hidden":true,"merged":[[17,0,18,0],[32,0,33,0],[19,0,20,0],[21,0,22,0],[23,0,25,0],[26,0,27,0],[28,0,29,0],[30,0,31,0],[15,0,16,0],[1,0,3,0],[7,0,8,0],[9,0,14,0],[4,0,6,0]]}
["Индикаторы риска причинения вреда (ущерба) ","Показатель (критерий оценки)","Объекты образования и объекты, на которых осуществляется деятельность детских лагерей","Объекты здравоохранения","Объекты социальной защиты","Объекты религиозного назначения","Объекты культурно-досугового назначения","Объекты временного размещения людей, туризма и отдыха","Объекты торговли","Объекты общественного питания","Объекты бытового обслуживания и предоставления услуг населению","Объекты транспортной инфраструктуры","Объекты административного назначения","Объекты жилого назначения (многоквартирные жилые дома)"]
["1. Степень огнестойкости","I, II",0,0,0,0,0,0,0,0,0,0,0,0]
[null,"III",1,3,1,1,1,1,1,1,1,1,1,1]
[null,"IV,V",3,5,3,3,3,3,3,3,3,3,3,3]
["2. Высота здания, сооружения","до 28 м",0,0,0,0,0,0,0,0,0,0,0,0]
[null,"от 28 м до 50 м (до 75 м для жилых зданий)",2,2,2,2,2,2,2,2,2,2,2,2]
[null,"свыше 50 м (свыше 75 м для жилых зданий)",4,4,4,4,4,4,4,4,4,4,4,4]
["3. Наличие открытых лестниц и (или) многосветных пространств","Да",4,4,4,4,4,4,4,4,4,4,4,4]
[null,"Нет",0,0,0,0,0,0,0,0,0,0,0,0]
["4. Количество людей","До 50",0,0,0,0,0,0,0,0,0,0,0,0]
[null,"50-200",4,3,3,3,4,3,3,3,3,3,3,3]
[null,"200-700",6,5,5,5,6,5,5,5,5,5,5,5]
[null,"700-1000",8,7,7,7,8,7,8,7,7,7,7,7]
[null,"1000-5000",10,8,8,8,12,8,12,8,8,8,8,8]
[null,"Свыше 5000",12,10,10,10,15,10,15,10,10,10,10,10]
["5. Наличие круглосуточного пребывания или проживания маломобильных групп населения, детей дошкольного и школьного возраста, пожилых людей старше 65 лет","Да ",40,40,40,40,0,10,0,0,0,0,0,0]
[null,"Нет",0,0,0,0,0,0,0,0,0,0,0,0]
["6.Нахождение в рабочее время на объекте более 10 человек, отнесенных к категории маломобильных групп населения, детей дошкольного и школьного возраста, а также пожилых людей старше 65 лет","Да ",20,20,20,20,20,0,0,0,0,0,0,0]
[null,"Нет",0,0,0,0,0,0,0,0,0,0,0,0]
["7. Системы противопожарной защиты (автоматические установки пожаротушения и пожарной сигнализации, система оповещения людей о пожаре и управления эвакуацией людей, система противодымной вентиляции) смонтированы более 10 лет назад и не подвергались капитальному ремонту","Да ",10,10,10,10,10,10,10,10,10,10,10,10]
[null,"Нет или сведения отсутствуют",0,0,0,0,0,0,0,0,0,0,0,0]
["8. Наличие на объекте пожарной охраны, обеспеченной пожарно-техническим вооружением","Да",-15,-15,-15,-15,-15,-15,-15,-15,-15,-15,-15,-15]
[null,"Нет",0,0,0,0,0,0,0,0,0,0,0,0]
["9. Привлечение к охране организации, специально учрежденной для оказания охранных услуг, зарегистрированной в установленном законом порядке и имеющей лицензию на осуществление частной охранной деятельности","Нет",0,0,0,0,0,0,0,0,0,0,0,0]
[null,"Не круглосуточно",-3,-3,-3,-3,-3,-3,-3,-3,-3,-3,-3,-5]
[null,"Круглосуточно",-5,-5,-5,-5,-5,-5,-5,-5,-5,-5,-5,-10]
["10. Электропроводка выполнена более 10 лет назад и не подвергалась капитальному ремонту","Да ",5,5,5,5,5,5,5,5,5,5,5,5]
[null,"Нет или сведения отсутствуют",0,0,0,0,0,0,0,0,0,0,0,0]
["11. Вид электропроводки (за исключением зданий и сооружений V степени огнестойкости)","открытая",2,2,2,2,2,2,2,2,2,2,2,2]
[null,"скрытая",0,0,0,0,0,0,0,0,0,0,0,0]
["12. Наличие электрического отопления (за исключением электрических котлов с контуром отопления)","Да",5,5,5,5,5,5,5,5,5,5,5,5]
[null,"Нет",0,0,0,0,0,0,0,0,0,0,0,0]
["13. Наличие печного отопления","Да ",10,10,10,10,10,10,10,10,10,10,10,10]
[null,"Нет",0,0,0,0,0,0,0,0,0,0,0,0]

{"sheet":"Таблица 2","index":2,"n_rows":43,"n_cols":6,"rows_kept":43,"cut":false,"hidden":true,"merged":[[34,0,35,0],[36,0,37,0],[38,0,42,0],[27,5,29,5],[30,0,31,0],[22,0,29,0],[27,1,29,1],[27,2,29,2],[27,3,29,3],[27,4,29,4],[13,0,14,0],[15,0,16,0],[17,0,18,0],[19,0,21,0],[32,0,33,0],[1,0,3,0],[4,0,5,0],[6,0,8,0],[9,0,10,0],[11,0,12,0]]}
["Индикаторы риска причинения вреда (ущерба) ","Показатель (критерий оценки)","Объекты производственного назначения","Объекты складского назначения","Объекты сельскохозяйственного назначения","Наружные установки"]
["1. Степень огнестойкости","I, II",0,0,0,"-"]
[null,"III",1,1,1,"-"]
[null,"IV,V",4,3,3,"-"]
["2. Наличие людей в селитебной зоне","Да",4,4,"-",5]
[null,"Нет",0,0,"-",0]
["3. Высота здания, сооружения (наружной установки)","до 28м ",0,0,0,0]
[null,"от 28 м до 50 м",2,2,2,2]
[null,"свыше 50 м ",4,4,4,4]
["4. Наличие открытых лестниц и (или) многосветных пространств","Да",4,4,4,"-"]
[null,"Нет",0,0,0,"-"]
["5. Наличие постоянных рабочих мест","Да",3,4,4,4]
[null,"Нет",0,0,0,0]
["6. Наличие маломобильных групп населения, пожилых людей старше 65 лет на территории","Да",10,20,20,10]
[null,"Нет",0,0,0,0]
["7. Системы противопожарной защиты (автоматические установки пожаротушения и пожарной сигнализации, система оповещения людей о пожаре и управления эвакуацией людей, система противодымной вентиляции) смонтированы более 10 лет назад и не подвергались капитальному ремонту","Да ",10,10,10,10]
[null,"Нет или сведения отсутствуют",0,0,0,0]
["8. Наличие на объекте пожарной охраны, обеспеченной пожарно-техническим вооружением","Да",-15,-15,-15,-15]
[null,"Нет",0,0,0,0]
["9. Привлечение к охране организации, специально учрежденной для оказания охранных услуг, зарегистрированной в установленном законом порядке и имеющей лицензию на осуществление частной охранной деятельности","Нет",0,0,0,0]
[null,"Не круглосуточно",-3,-3,-3,-3]
[null,"Круглосуточно",-5,-5,-5,-5]
["10. Категория здания, сооружения (наружной установки), если категорируется","А, АН - для наружной установки",8,8,8,8]
[null,"Б, БН - для наружной установки",8,8,8,8]
[null,"В с долей помещений В1-В2 более 50%",10,10,10,6]
[null,"В с долей помещений В1-В2 менее 50%, ВН - для наружной установки",4,4,4,6]
[null,"Г, ГН -для наружной установки",2,2,2,3]
[null,"Д, ДН - для наружной установки",0,0,0,0]
[]
[]
["11. Электропроводка выполнена более 10 лет назад и не подвергалась капитальному ремонту","Да ",5,5,5,"-"]
[null,"Нет или сведения отсутствуют",0,0,0,"-"]
["12. Вид электропроводки (за исключением зданий и сооружений  V степени огнестойкости)","открытая",2,2,2,"-"]
[null,"скрытая",0,0,0,"-"]
["13. Электрическое отопление (за исключением электрических котлов с контуром отопления)","Да",5,5,5,"-"]
[null,"нет",0,0,0,"-"]
["14. Наличие печного отопления","Да ",10,10,10,"-"]
[null,"Нет",0,0,0,"-"]
["15. Категория объекта по потенциальной радиационной опасности","I",10,10,"-","-"]
[null,"II",7,7,"-","-"]
[null,"III",4,2,"-","-"]
[null,"IV",2,1,"-","-"]
[null,"Не категорируется",0,0,"-","-"]

{"sheet":"Таблица 3","index":3,"n_rows":36,"n_cols":14,"rows_kept":36,"cut":false,"hidden":true,"merged":[[11,0,12,0],[22,0,23,0],[24,0,25,0],[26,0,27,0],[17,0,18,0],[19,0,21,0],[1,0,2,0],[3,0,4,0],[5,0,6,0],[7,0,8,0],[9,0,10,0],[32,0,33,0],[34,0,35,0],[28,0,29,0],[30,0,31,0],[13,0,14,0],[15,0,16,0]]}
["Критерии добросовестности","Показатель (критерий оценки)","Объекты образования и объекты, на которых осуществляется деятельность детских лагерей","Объекты здравоохранения","Объекты социальной защиты","Объекты религиозного назначения","Объекты культурно-досугового назначения","Объекты временного размещения людей, туризма и отдыха","Объекты торговли","Объекты общественного питания","Объекты бытового обслуживания и предоставления услуг населению","Объекты транспортной инфраструктуры","Объекты административного назначения","Объекты жилого назначения (многоквартирные жилые дома)"]
["1. Наличие в отношении объекта действующего предписания органа государственного пожарного надзора, содержащего сведения об неустраненных нарушениях установленных требований, предъявляемых к путям эвакуации, зонам безопасности для маломобильных групп населения, автоматическим системам противопожарной защиты (автоматические установки пожаротушения и пожарной сигнализации, система оповещения людей о пожаре и управления эвакуацией людей, система противодымной ветиляции)","Да",15,15,15,15,15,15,15,15,15,15,15,15]
[null,"Нет",0,0,0,0,0,0,0,0,0,0,0,0]
["2. Наличие в отношении объекта действующего предписания органа государственного пожарного надзора, содержащего сведения об неустраненных нарушениях установленных требований, предъявляемых к  обеспечению деятельности пожарных подразделений","Да",6,6,6,6,6,6,6,6,6,6,6,6]
[null,"Нет",0,0,0,0,0,0,0,0,0,0,0,0]
["3. Наличие в отношении объекта действующего предписания органа государственного пожарного надзора, содержащего сведения об неустраненных нарушениях установленных требований,   не вошедшими в пункты 1, 2","Да",2,2,2,2,2,2,2,2,2,2,2,2]
[null,"Нет",0,0,0,0,0,0,0,0,0,0,0,0]
["4. Наличие в отношении объекта  заключения о независимой оценки пожарного риска (аудита пожарной безопасности) с выводом о выполнении требований пожарной безопасности и соблюдении противопожарного режима","Да",-10,-10,-10,-10,-10,-10,-10,-10,-10,-10,-10,0]
[null,"Нет",0,0,0,0,0,0,0,0,0,0,0,0]
["5. Наличие на объекте учреждений, осуществляющих экономическую деятельность, не соответствующую функциональному назначению здания","Да",3,3,3,3,3,3,3,3,3,3,3,3]
[null,"Нет",0,0,0,0,0,0,0,0,0,0,0,0]
["6. Наличие сведений о проведении на объекте перепланировки, реконструкции, капитального ремонта или технического перевооружения","Да",3,3,3,3,3,3,3,3,3,3,3,3]
[null,"Нет",0,0,0,0,0,0,0,0,0,0,0,0]
["7. Предоставление заключения по оценке пожарного риска с обоснованием отступления от требований нормативных локументов по пожарной безопасности","Да",5,5,5,5,5,5,5,5,5,5,5,5]
[null,"Нет",0,0,0,0,0,0,0,0,0,0,0,0]
["8 .Наличие автоматического дублирования сигнала в подразделение пожарной охраны с использованием системы передачи извещения о пожаре (за исключением зданий классов функциональной пожарной опасности Ф1.1, Ф1.2, Ф4.1, Ф4.2","Да",-5,-5,-5,-5,-5,-5,-5,-5,-5,-5,-5,-5]
[null,"Нет",0,0,0,0,0,0,0,0,0,0,0,0]
["9. Наличие зарегистрированных случаев пожаров за последние 5 лет (за исключением пожаров причиной которых является умышленное уничтожение или повреждения имущества)","Да",20,20,20,20,20,20,20,20,20,20,20,20]
[null,"Нет",0,0,0,0,0,0,0,0,0,0,0,0]
["10. Наличие вступившего в законную силу постановления суда о назначении наказания в виде административного приостановления деятельности юридического лица и индивидуального предпринимателя за нарушения требований пожарной безопасности на объекте  либо решения суда о приостановлении деятельности в соответствии с частью 2 статьи 1065 Гражданского кодекса Российской Федерации в течение последних 3 лет","Да",30,30,30,30,30,30,30,30,30,30,30,0]
[null,"Нет",0,0,0,0,0,0,0,0,0,0,0,0]
[null,"Нет",0,0,0,0,0,0,0,0,0,0,0,0]
["11. Наличие информации о вводе в эксплуатацию, либо фактическом функционировании объекта защиты, получившего отрицательное заключение при согласовании специальных технических условий, отражающих специфику обеспечения его пожарной безопасности, содержащих комплекс необходимых инженерно-технических и организационных мероприятий по обеспечению пожарной безопасности, стандарта организации","Да",20,20,20,20,20,20,20,20,20,20,20,20]
[null,"Нет",0,0,0,0,0,0,0,0,0,0,0,0]
["12. Непредставление в установленном порядке декларации пожарной безопасности в отношении объекта защиты, для которого законодательством Российской Федерации о градостроительной деятельности предусмотрено проведение экспертизы проектной документации","Да",5,5,5,5,5,5,5,5,5,5,5,0]
[null,"Нет",0,0,0,0,0,0,0,0,0,0,0,0]
["13. Непредставление подконтрольным лицом ‎в срок, установленный в предостережении о недопустимости нарушения обязательных требований, уведомления о принятии мер на объекте по обеспечению соблюдения обязательных требований законодательства в области пожарной безопасности","Да",10,10,10,10,10,10,10,10,10,10,10,10]
[null,"Нет",0,0,0,0,0,0,0,0,0,0,0,0]
["14. Наличие сведений о ненадлежащей работе при пожаре имеющихся автоматических систем противопожарной защиты","Да",10,10,10,10,10,10,10,10,10,10,10,10]
[null,"Нет",0,0,0,0,0,0,0,0,0,0,0,0]
["15. Наличие сведений о приостановлении действия лицензии юридического лица, индивидуального предпринимателя на осуществление деятельности по техническому обслуживанию и ремонту средств обеспечения пожарной безопасности вследствие грубых нарушений лицензионных требований","Да",10,10,10,10,10,10,10,10,10,10,10,10]
[null,"Нет",0,0,0,0,0,0,0,0,0,0,0,0]
["16. Предоставление контролируемым лицом договора страхования рисков причинения вреда (ущерба), объектом которого являются имущественные интересы контролируемого лица, связанные с его обязанностью возместить вред (ущерб) охраняемым законом ценностям, причиненный вследствие нарушения контролируемым лицом требований пожарной безопасности","Да",-10,-10,-10,-10,-10,-10,-10,-10,-10,-10,-10,-10]
[null,"Нет",0,0,0,0,0,0,0,0,0,0,0,0]
["17. Предоставление в добровольном порядке декларации пожарной безопасности (статья 64 Федерального закона \"Технический регламент о требованиях пожарной безопасности\") в отношении объекта (наружной установки), для которого законодательством Российской Федерации о градостроительной деятельности не предусмотрено проведение экспертизы проектной документации","Да",-10,-10,-10,-10,-10,-10,-10,-10,-10,-10,-10,-10]
[null,"Нет",0,0,0,0,0,0,0,0,0,0,0,0]

{"sheet":"Таблица 4","index":4,"n_rows":35,"n_cols":6,"rows_kept":35,"cut":false,"hidden":true,"merged":[[1,0,2,0],[3,0,4,0],[5,0,6,0],[25,0,26,0],[27,0,28,0],[13,0,14,0],[19,0,20,0],[21,0,22,0],[23,0,24,0],[15,0,16,0],[17,0,18,0],[31,0,32,0],[33,0,34,0],[11,0,12,0],[7,0,8,0],[9,0,10,0],[29,0,30,0]]}
["Критерии добросовестности","Показатель (критерий оценки)","Объекты производственного назначения","Объекты складского назначения","Объекты сельскохозяйственного назначения","Наружные установки"]
["1. Наличие в отношении объекта (наружной установки) действующего предписания органа государственного пожарного надзора, содержащего сведения об неустраненных нарушениях установленных требований, предъявляемых к путям эвакуации, зонам безопасности для маломобильных групп населения, автоматическим системам противопожарной защиты (автоматические установки пожаротушения и пожарной сигнализации, система оповещения людей о пожаре и управления эвакуацией людей, система противодымной ветиляции)","Да",15,15,15,15]
[null,"Нет",0,0,0,0]
["2.  Наличие в отношении объекта (наружной установки) действующего предписания органа государственного пожарного надзора, содержащего сведения об неустраненных нарушениях установленных требований, предъявляемых к  обеспечению деятельности пожарных подразделений","Да",6,6,6,8]
[null,"Нет",0,0,0,0]
["3. Наличие в отношении объекта (наружной установки) действующего предписания органа государственного пожарного надзора, содержащего сведения об неустраненных нарушениях установленных требований,   не вошедшх в пункты 1, 2 настоящей таблицы","Да",2,2,2,2]
[null,"Нет",0,0,0,0]
["4. Наличие в отношении объекта (наружной установки)  заключения о независимой оценки пожарного риска (аудита пожарной безопасности) с выводом о выполнении требований пожарной безопасности и соблюдении противопожарного режима","Да",-10,-10,-10,-10]
[null,"Нет",0,0,0,0]
["5.Наличие на объекте (на территории) учреждений, осуществляющих экономическую деятельность, не соответствующую функциональному назначению","Да",3,3,3,5]
[null,"Нет",0,0,0,0]
["6. Наличие сведений о проведении на объекте (наружной установке) перепланировки, реконструкции, капитального ремонта или технического перевооружения (реконструкции технологических установок)","Да",3,3,3,3]
[null,"Нет",0,0,0,0]
["7. Предоставление заключения по оценке пожарного риска с обоснованием отступления от требований нормативных локументов по пожарной безопасности","Да",5,5,5,5]
[null,"Нет",0,0,0,0]
["8. Наличие автоматического дублирования сигнала в подразделение пожарной охраны с использованием системы передачи извещения о пожаре (за исключением зданий классов функциональной пожарной опасности Ф1.1, Ф1.2, Ф4.1, Ф4.2","Да",-5,-5,-5,-5]
[null,"Нет",0,0,0,0]
["9.  Наличие зарегистрированных случаев пожаров на объекте (наружной установке) за последние 5 лет (за исключением пожаров причиной которых является умышленное уничтожение или повреждения имущества)","Да",20,20,20,20]
[null,"Нет",0,0,0,0]
["10. Наличие вступившего в законную силу постановления суда о назначении наказания в виде административного приостановления деятельности юридического лица и индивидуального предпринимателя за нарушения требований пожарной безопасности на объекте  (наружной установке) либо решения суда о приостановлении деятельности в соответствии с частью 2 статьи 1065 Гражданского кодекса Российской Федерации в течение последних 3 лет","Да",30,30,30,30]
[null,"Нет",0,0,0,0]
["11. Наличие информации о вводе в эксплуатацию, либо фактическом функционировании объекта (наружной установки), получивших отрицательное заключение при согласовании специальных технических условий, отражающих специфику обеспечения его пожарной безопасности и содержащих комплекс необходимых инженерно-технических и организационных мероприятий по обеспечению пожарной безопасности, стандарта организации","Да",20,20,20,20]
[null,"Нет",0,0,0,0]
["12. Непредставление в установленном порядке декларации пожарной безопасности в отношении объекта (наружной установки) для которых законодательством Российской Федерации о градостроительной деятельности предусмотрено проведение экспертизы проектной документации","Да",5,5,5,5]
[null,"Нет",0,0,0,0]
["13.  Непредставление подконтрольным лицом ‎в срок, установленный в предостережении о недопустимости нарушения обязательных требований, уведомления о принятии мер на объекте по обеспечению соблюдения обязательных требований законодательства в области пожарной безопасности на объекте (наружной установке)","Да",10,10,10,10]
[null,"Нет",0,0,0,0]
["14. Наличие сведений о ненадлежащей работе при пожаре на объекте (наружной установке) имеющихся  систем противопожарной защиты","Да",10,10,10,10]
[null,"Нет",0,0,0,0]
["15.  Наличие сведений о приостановлении действия лицензии юридического лица, индивидуального предпринимателя на осуществление деятельности по техническому обслуживанию и ремонту средств обеспечения пожарной безопасности вследствие грубых нарушений лицензионных требований на объекте (наружной установке)","Да",10,10,10,10]
[null,"Нет",0,0,0,0]
["16. Предоставление контролируемым лицом договора страхования рисков причинения вреда (ущерба), объектом которого являются имущественные интересы контролируемого лица, связанные с его обязанностью возместить вред (ущерб) охраняемым законом ценностям, причиненный вследствие нарушения контролируемым лицом требований пожарной безопасности","Да",-10,-10,-10,-10]
[null,"Нет",0,0,0,0]
["17. Предоставление в добровольном порядке декларации пожарной безопасности (статья 64 Федерального закона \"Технический регламент о требованиях пожарной безопасности\") в отношении объекта (наружной установки), для которого законодательством Российской Федерации о градостроительной деятельности не предусмотрено проведение экспертизы проектной документации","Да",-10,-10,-10,-10]
[null,"Нет",0,0,0,0]

{"sheet":"Определение  Iрпв по табл.1 ","index":5,"n_rows":22,"n_cols":3,"rows_kept":22,"cut":false,"hidden":true,"merged":[[0,0,0,2],[2,0,2,2],[4,0,4,2],[6,0,6,2],[5,0,5,2]]}
["Объекты образования и объекты, на которых осуществляется деятельность детских лагерей"]
[]
[]
[]
["Расположен по адресу: "]
[]
["Определение индикаторов риска Iрпв "]
["Индикаторы риска причинения вреда (ущерба) ","Показатель (критерий оценки)","Значение показателя Iрпв"]
["1. Степень огнестойкости","I, II",{"$f":"INDEX('Таблица 1'!A2:N4,MATCH(B9,'Таблица 1'!B2:B4,0),MATCH(A1,'Таблица 1'!A1:N1,0))","v":0}]
["2. Высота здания, сооружения","свыше 50 м (свыше 75 м для жилых зданий)",{"$f":"INDEX('Таблица 1'!A5:N7,MATCH(B10,'Таблица 1'!B5:B7,0),MATCH(A1,'Таблица 1'!A1:N1,0))","v":4}]
["3. Наличие открытых лестниц и (или) многосветных пространств","Да",{"$f":"INDEX('Таблица 1'!A8:N9,MATCH(B11,'Таблица 1'!B8:B9,0),MATCH(A1,'Таблица 1'!A1:N1,0))","v":4}]
["4. Количество людей","700-1000",{"$f":"INDEX('Таблица 1'!A10:N15,MATCH(B12,'Таблица 1'!B10:B15,0),MATCH(A1,'Таблица 1'!A1:N1,0))","v":8}]
["5. Наличие круглосуточного пребывания или проживания маломобильных групп населения, детей дошкольного и школьного возраста, пожилых людей старше 65 лет","Нет",{"$f":"INDEX('Таблица 1'!A16:N17,MATCH(B13,'Таблица 1'!B16:B17,0),MATCH(A1,'Таблица 1'!A1:N1,0))","v":0}]
["6. Нахождение в рабочее время на объекте более 10 человек, отнесенных к категории маломобильных групп населения, детей дошкольного и школьного возраста, а также пожилых людей старше 65 лет","Нет",{"$f":"INDEX('Таблица 1'!A18:N19,MATCH(B14,'Таблица 1'!B18:B19,0),MATCH(A1,'Таблица 1'!A1:N1,0))","v":0}]
["7. Системы противопожарной защиты (автоматические установки пожаротушения и пожарной сигнализации, система оповещения людей о пожаре и управления эвакуацией людей, система противодымной вентиляции) смонтированы более 10 лет назад и не подвергались капитальному ремонту","Да ",{"$f":"INDEX('Таблица 1'!A20:N21,MATCH(B15,'Таблица 1'!B20:B21,0),MATCH(A1,'Таблица 1'!A1:N1,0))","v":10}]
["8. Наличие на объекте пожарной охраны, обеспеченной пожарно-техническим вооружением","Да",{"$f":"INDEX('Таблица 1'!A22:N23,MATCH(B16,'Таблица 1'!B22:B23,0),MATCH(A1,'Таблица 1'!A1:N1,0))","v":-15}]
["9. Привлечение к охране организации, специально учрежденной для оказания охранных услуг, зарегистрированной в установленном законом порядке и имеющей лицензию на осуществление частной охранной деятельности","Не круглосуточно",{"$f":"INDEX('Таблица 1'!A24:N26,MATCH(B17,'Таблица 1'!B24:B26,0),MATCH(A1,'Таблица 1'!A1:N1,0))","v":-3}]
["10.  Электропроводка выполнена более 10 лет назад и не подвергалась капитальному ремонту","Да ",{"$f":"INDEX('Таблица 1'!A27:N28,MATCH(B18,'Таблица 1'!B27:B28,0),MATCH(A1,'Таблица 1'!A1:N1,0))","v":5}]
["11.  Вид электропроводки (за исключением зданий и сооружений V степени огнестойкости)","скрытая",{"$f":"INDEX('Таблица 1'!A29:N30,MATCH(B19,'Таблица 1'!B29:B30,0),MATCH(A1,'Таблица 1'!A1:N1,0))","v":0}]
["12. Наличие электрического отопления (за исключением электрических котлов с контуром отопления)","Нет",{"$f":"INDEX('Таблица 1'!A31:N32,MATCH(B20,'Таблица 1'!B31:B32,0),MATCH(A1,'Таблица 1'!A1:N1,0))","v":0}]
["13. Наличие печного отопления","Да ",{"$f":"INDEX('Таблица 1'!A33:N34,MATCH(B21,'Таблица 1'!B33:B34,0),MATCH(A1,'Таблица 1'!A1:N1,0))","v":10}]
[null,"∑ Iрпв = ",{"$f":"SUM(C9:C21)","v":23}]

{"sheet":"Определение  Iкрд по табл.1","index":6,"n_rows":35,"n_cols":3,"rows_kept":35,"cut":false,"hidden":true,"merged":[[0,0,0,2],[6,0,6,2],[2,0,2,2],[4,0,4,2]]}
["Объекты образования и объекты, на которых осуществляется деятельность детских лагерей"]
[]
[]
[]
["Расположен по адресу: "]
[]
["Определение критериев добросовестности  Iкрд"]
["Критерии добросовестности","Показатель      (критерий оценки)","Значение показателя Iкрд"]
["1. Наличие в отношении объекта действующего предписания органа государственного пожарного надзора, содержащего сведения об неустраненных нарушениях установленных требований, предъявляемых к путям эвакуации, зонам безопасности для маломобильных групп населения, автоматическим системам противопожарной защиты (автоматические установки пожаротушения и пожарной сигнализации, система оповещения людей о пожаре и управления эвакуацией людей, система противодымной ветиляции)","Нет",{"$f":"INDEX('Таблица 3'!A2:N3,MATCH(B9,'Таблица 3'!B2:B3,0),MATCH(A1,'Таблица 3'!A1:N1,0))","v":0}]
["2. Наличие в отношении объекта действующего предписания органа государственного пожарного надзора, содержащего сведения об неустраненных нарушениях установленных требований, предъявляемых к  обеспечению деятельности пожарных подразделений","Нет",{"$f":"INDEX('Таблица 3'!A4:N5,MATCH(B10,'Таблица 3'!B4:B5,0),MATCH(A1,'Таблица 3'!A1:N1,0))","v":0}]
["3. Наличие в отношении объекта действующего предписания органа государственного пожарного надзора, содержащего сведения об неустраненных нарушениях установленных требований,   не вошедшими в пункты 1, 2","Нет",{"$f":"INDEX('Таблица 3'!A6:N7,MATCH(B11,'Таблица 3'!B6:B7,0),MATCH(A1,'Таблица 3'!A1:N1,0))","v":0}]
["4.  Наличие в отношении объекта  заключения о независимой оценки пожарного риска (аудита пожарной безопасности) с выводом о выполнении требований пожарной безопасности и соблюдении противопожарного режима","Нет",{"$f":"INDEX('Таблица 3'!A8:N9,MATCH(B12,'Таблица 3'!B8:B9,0),MATCH(A1,'Таблица 3'!A1:N1,0))","v":0}]
["5. Наличие на объекте учреждений, осуществляющих экономическую деятельность, не соответствующую функциональному назначению здания","Нет",{"$f":"INDEX('Таблица 3'!A10:N11,MATCH(B13,'Таблица 3'!B10:B11,0),MATCH(A1,'Таблица 3'!A1:N1,0))","v":0}]
["6. Наличие сведений о проведении на объекте перепланировки, реконструкции, капитального ремонта или технического перевооружения","Нет",{"$f":"INDEX('Таблица 3'!A12:N13,MATCH(B14,'Таблица 3'!B12:B13,0),MATCH(A1,'Таблица 3'!A1:N1,0))","v":0}]
["7. Предоставление заключения по оценке пожарного риска с обоснованием отступления от требований нормативных локументов по пожарной безопасности","Да",{"$f":"INDEX('Таблица 3'!A14:N15,MATCH(B15,'Таблица 3'!B14:B15,0),MATCH(A1,'Таблица 3'!A1:N1,0))","v":5}]
["8. Наличие автоматического дублирования сигнала в подразделение пожарной охраны с использованием системы передачи извещения о пожаре (за исключением зданий классов функциональной пожарной опасности Ф1.1, Ф1.2, Ф4.1, Ф4.2","Да",{"$f":"INDEX('Таблица 3'!A16:N17,MATCH(B16,'Таблица 3'!B16:B17,0),MATCH(A1,'Таблица 3'!A1:N1,0))","v":-5}]
["9. Наличие зарегистрированных случаев пожаров за последние 5 лет (за исключением пожаров причиной которых является умышленное уничтожение или повреждения имущества)","Нет",{"$f":"INDEX('Таблица 3'!A18:N19,MATCH(B17,'Таблица 3'!B18:B19,0),MATCH(A1,'Таблица 3'!A1:N1,0))","v":0}]
["10. Наличие вступившего в законную силу постановления суда о назначении наказания в виде административного приостановления деятельности юридического лица и индивидуального предпринимателя за нарушения требований пожарной безопасности на объекте  либо решения суда о приостановлении деятельности в соответствии с частью 2 статьи 1065 Гражданского кодекса Российской Федерации в течение последних 3 лет","Нет",{"$f":"INDEX('Таблица 3'!A20:N22,MATCH(B18,'Таблица 3'!B20:B22,0),MATCH(A1,'Таблица 3'!A1:N1,0))","v":0}]
["11. Наличие информации о вводе в эксплуатацию, либо фактическом функционировании объекта защиты, получившего отрицательное заключение при согласовании специальных технических условий, отражающих специфику обеспечения его пожарной безопасности и содержащих комплекс необходимых инженерно-технических и организационных мероприятий по обеспечению пожарной безопасности, стандарта организации","Нет",{"$f":"INDEX('Таблица 3'!A23:N24,MATCH(B19,'Таблица 3'!B23:B24,0),MATCH(A1,'Таблица 3'!A1:N1,0))","v":0}]
["12.  Непредставление в установленном порядке декларации пожарной безопасности в отношении объекта защиты, для которого законодательством Российской Федерации о градостроительной деятельности предусмотрено проведение экспертизы проектной документации","Нет",{"$f":"INDEX('Таблица 3'!A25:N26,MATCH(B20,'Таблица 3'!B25:B26,0),MATCH(A1,'Таблица 3'!A1:N1,0))","v":0}]
["13. Непредставление подконтрольным лицом ‎в срок, установленный в предостережении о недопустимости нарушения обязательных требований, уведомления о принятии мер на объекте по обеспечению соблюдения обязательных требований законодательства в области пожарной безопасности","Нет",{"$f":"INDEX('Таблица 3'!A27:N28,MATCH(B21,'Таблица 3'!B27:B28,0),MATCH(A1,'Таблица 3'!A1:N1,0))","v":0}]
["14. Наличие сведений о ненадлежащей работе при пожаре имеющихся автоматических систем противопожарной защиты","Нет",{"$f":"INDEX('Таблица 3'!A29:N30,MATCH(B22,'Таблица 3'!B29:B30,0),MATCH(A1,'Таблица 3'!A1:N1,0))","v":0}]
["15. Наличие сведений о приостановлении действия лицензии юридического лица, индивидуального предпринимателя на осуществление деятельности по техническому обслуживанию и ремонту средств обеспечения пожарной безопасности вследствие грубых нарушений лицензионных требований","Нет",{"$f":"INDEX('Таблица 3'!A31:N32,MATCH(B23,'Таблица 3'!B31:B32,0),MATCH(A1,'Таблица 3'!A1:N1,0))","v":0}]
["16. Предоставление контролируемым лицом договора страхования рисков причинения вреда (ущерба), объектом которого являются имущественные интересы контролируемого лица, связанные с его обязанностью возместить вред (ущерб) охраняемым законом ценностям, причиненный вследствие нарушения контролируемым лицом требований пожарной безопасности","Нет",{"$f":"INDEX('Таблица 3'!A33:N34,MATCH(B24,'Таблица 3'!B33:B34,0),MATCH(A1,'Таблица 3'!A1:N1,0))","v":0}]
["17. Предоставление в добровольном порядке декларации пожарной безопасности (статья 64 Федерального закона \"Технический регламент о требованиях пожарной безопасности\") в отношении объекта (наружной установки), для которого законодательством Российской Федерации о градостроительной деятельности не предусмотрено проведение экспертизы проектной документации","Нет",{"$f":"INDEX('Таблица 3'!A35:N36,MATCH(B25,'Таблица 3'!B35:B36,0),MATCH(A1,'Таблица 3'!A1:N1,0))","v":0}]
[null,"∑ Iкрд =",{"$f":"SUM(C9:C25)","v":0}]
[]
["Индекс индивидуализации подконтрольного лица","Uинд =∑ Iрпв+∑ Iкрд=",{"$f":"'Определение  Iкрд по табл.1'!C26+'Определение  Iрпв по табл.1 '!C22","v":23}]
[]
["Показатель тяжести потенциальных негативных последствий пожара с учетом индекса индивидуализации подконтрольного лица ","Кг.т.инд.=Uинд+Кгт = ",{"$f":"INDEX('Таблица со статистикой'!B3:J18,MATCH(A1,'Таблица со статистикой'!B3:B18,0),8)+C28","v":27.079287420856719}]
[]
["Категория риска объекта",null,{"$f":"IF(C30>=100,\"Чрезвычайно высокий\",IF(C30>=45,\"Высокий\",IF(C30>=20,\"Значительный\",IF(C30>=9,\"Средний\",IF(C30>=4,\"Умеренный\",\"Низкий\")))))","v":"Значительный"}]
[]
[null,{"$f":"TODAY()","v":"2024-12-18"}]
["Ф.И. О.  выполнившего расчет","Дата расчета","Подпись"]

{"sheet":"Таблица со статистикой","index":7,"n_rows":18,"n_cols":10,"rows_kept":18,"cut":false,"hidden":true,"merged":[[0,9,1,9],[0,7,1,7],[0,8,1,8],[0,0,1,0],[0,1,1,1],[0,2,1,2],[0,3,0,5],[0,6,1,6]]}
["№ п/п","Тип объекта","Сведен.  о кол-ве объектов, ед.","Сведения о пожарах и их последствиях",null,null,"Вероятность возникновения пожара, [год-1]","Ожид. риск негатив. последствий пожаров, [год-1 чел./ед.] × 10³","Показатель тяжести последствий (Kгт)","Категория риска"]
[null,null,null,"Кол-во пожаров, ед","Погибло людей, чел.","Травми-ровано людей, чел."]
[1,"Объекты образования и объекты, на которых осуществляется деятельность детских лагерей",157350,408,4,16,{"$f":"D3/C3","v":2.5929456625357482E-3},{"$f":"(E3+F3)/C3*1000","v":0.12710517953606609},{"$f":"H3/1000/'Таблица со статистикой по РФ'!F3","v":4.07928742085672},{"$f":"IF(I3>=100,\"Чрезвычайно высокий\",IF(I3>=45,\"Высокий\",IF(I3>=20,\"Значительный\",IF(I3>=9,\"Средний\",IF(I3>=4,\"Умеренный\",\"Низкий\")))))","v":"Умеренный"}]
[2,"Объекты здравоохранения",56626,232,3,19,4.097057888602409E-3,0.3885141101260905,{"$f":"H4/1000/'Таблица со статистикой по РФ'!F3","v":12.468891732401818},"Средний"]
[3,"Объекты социальной защиты",6788,34,3,6,5.0088391278727169E-3,1.3258691809074838,{"$f":"H5/1000/'Таблица со статистикой по РФ'!F3","v":42.55217207606249},"Значительный"]
[4,"Объекты религиозного назначения",18653,64,1,11,3.431083471827588E-3,0.64332815096767282,{"$f":"H6/1000/'Таблица со статистикой по РФ'!F3","v":20.646841012334903},"Значительный"]
[5,"Объекты культурно-досугового назначения",67643,220,0,2,3.2523690551867893E-3,2.9566991410788997E-2,{"$f":"H7/1000/'Таблица со статистикой по РФ'!F3","v":0.94891692513904602},"Низкий"]
[6,"Объекты временного размещения людей, туризма и отдыха",35660,273,15,41,7.655636567582726E-3,1.5703869882220978,{"$f":"H8/1000/'Таблица со статистикой по РФ'!F3","v":50.399676160433366},"Высокий"]
[7,"Объекты торговли",490944,2432,3,27,4.9537218094120716E-3,6.110676574110286E-2,{"$f":"H9/1000/'Таблица со статистикой по РФ'!F3","v":1.9611479384771122},"Низкий"]
[8,"Объекты общественного питания",71637,652,5,33,9.1014419922665658E-3,0.53045214065357282,{"$f":"H10/1000/'Таблица со статистикой по РФ'!F3","v":17.024221614199774},"Средний"]
[9,"Объекты бытового обслуживания и предоставления услуг населению",95324,386,1,8,4.0493474885653141E-3,9.4414837816289704E-2,{"$f":"H11/1000/'Таблица со статистикой по РФ'!F3","v":3.0301303349871196},"Низкий"]
[10,"Объекты транспортной инфраструктуры",4055,58,0,1,1.4303329223181258E-2,0.24660912453760789,{"$f":"H12/1000/'Таблица со статистикой по РФ'!F3","v":7.9146223880617121},"Умеренный"]
[11,"Объекты административного назначения",167327,777,8,19,4.6436020486831176E-3,0.16136068895037861,{"$f":"H13/1000/'Таблица со статистикой по РФ'!F3","v":5.1786766759515004},"Умеренный"]
[12,"Объекты жилого назначения (многоквартирные жилые дома)",48861,2871,4,30,{"$f":"D14/C14","v":5.8758519064284399E-2},{"$f":"(E14+F14)/C14*1000","v":0.69585149710402971},{"$f":"H14/1000/'Таблица со статистикой по РФ'!F3","v":22.332514452059275},{"$f":"IF(I14>=100,\"Чрезвычайно высокий\",IF(I14>=45,\"Высокий\",IF(I14>=20,\"Значительный\",IF(I14>=9,\"Средний\",IF(I14>=4,\"Умеренный\",\"Низкий\")))))","v":"Значительный"}]
[13,"Объекты производственного назначения",158934,2417,52,78,1.5207570438043464E-2,0.81794958913762938,{"$f":"H15/1000/'Таблица со статистикой по РФ'!F3","v":26.251105439155445},"Значительный"]
[14,"Объекты складского назначения",119877,2008,23,44,1.6750502598496794E-2,0.55890621220083925,{"$f":"H16/1000/'Таблица со статистикой по РФ'!F3","v":17.937420718741265},"Средний"]
[15,"Объекты сельскохозяйственного назначения",50212,842,16,23,1.6768899864574204E-2,0.7767067633235083,{"$f":"H17/1000/'Таблица со статистикой по РФ'!F3","v":24.92746669242451},"Значительный"]
[16,"Наружные установки",21763,459,6,20,2.1090842255203787E-2,1.1946882323209116,{"$f":"H18/1000/'Таблица со статистикой по РФ'!F3","v":38.342077763789291},"Значительный"]

{"sheet":"Таблица со статистикой по РФ","index":8,"n_rows":3,"n_cols":6,"rows_kept":3,"cut":false,"hidden":true,"merged":[]}
[]
["Индивидуальный пожарный риск воздействия критических значений опасных факторов пожара на человека в зданиях и сооружениях -  Dдоп"," Численность постоянного населения в РФ  в период проведения ежегодного мониторинга, чел. -  Nнас","Общее количество объектов защиты в РФ в период проведения ежегодного мониторинга - Nоб","Общее количество погибших людей при пожарах на объектах защиты в РФ в период проведения ежегодного мониторинга  - Nг\n","Общее количество травмированных людей при пожарах на объектах защиты в РФ в период проведения ежегодного мониторинга - Nт","Допустимый риск негативных последствий пожаров - Qсдоп"]
[9.9999999999999995E-7,146745098,9954560,8507,9474,{"$f":"A3*B3*(D3+E3)/(C3*D3)","v":3.1158672195099173E-5}]

{"sheet":"Iрпв для производств.объектов","index":9,"n_rows":24,"n_cols":3,"rows_kept":24,"cut":false,"hidden":true,"merged":[[6,0,6,2],[0,0,0,2],[2,0,2,2],[5,0,5,2],[4,0,4,2]]}
["Объекты сельскохозяйственного назначения"]
[]
[]
[]
["Расположен по адресу: "]
[]
["Определение индикаторов риска Iрпв "]
["Индикаторы риска причинения вреда (ущерба) ","Показатель (критерий оценки)","Значение показателя Iрпв"]
["1. Степень огнестойкости","IV,V",{"$f":"INDEX('Таблица 2'!A2:F4,MATCH(B9,'Таблица 2'!B2:B4,0),MATCH(A1,'Таблица 2'!A1:F1,0))","v":3}]
["2. Наличие людей в селитебной зоне","Нет",{"$f":"INDEX('Таблица 2'!A5:F6,MATCH(B10,'Таблица 2'!B5:B6,0),MATCH(A1,'Таблица 2'!A1:F1,0))","v":"-"}]
["3. Высота здания, сооружения (наружной установки)","до 28м ",{"$f":"INDEX('Таблица 2'!A7:F9,MATCH(B11,'Таблица 2'!B7:B9,0),MATCH(A1,'Таблица 2'!A1:F1,0))","v":0}]
["4. Наличие открытых лестниц и (или) многосветных пространств","Да",{"$f":"INDEX('Таблица 2'!A10:F11,MATCH(B12,'Таблица 2'!B10:B11,0),MATCH(A1,'Таблица 2'!A1:F1,0))","v":4}]
["5. Наличие постоянных рабочих мест","Да",{"$f":"INDEX('Таблица 2'!A12:F13,MATCH(B13,'Таблица 2'!B12:B13,0),MATCH(A1,'Таблица 2'!A1:F1,0))","v":4}]
["6. Наличие маломобильных групп населения, пожилых людей старше 65 лет на территории","Да",{"$f":"INDEX('Таблица 2'!A14:F15,MATCH(B14,'Таблица 2'!B14:B15,0),MATCH(A1,'Таблица 2'!A1:F1,0))","v":20}]
["7. Системы противопожарной защиты (автоматические установки пожаротушения и пожарной сигнализации, система оповещения людей о пожаре и управления эвакуацией людей, система противодымной вентиляции) смонтированы более 10 лет назад и не подвергались капитальному ремонту","Нет или сведения отсутствуют",{"$f":"INDEX('Таблица 2'!A16:F17,MATCH(B15,'Таблица 2'!B16:B17,0),MATCH(A1,'Таблица 2'!A1:F1,0))","v":0}]
["8. Наличие на объекте пожарной охраны, обеспеченной пожарно-техническим вооружением","Да",{"$f":"INDEX('Таблица 2'!A18:F19,MATCH(B16,'Таблица 2'!B18:B19,0),MATCH(A1,'Таблица 2'!A1:F1,0))","v":-15}]
["9. Привлечение к охране организации, специально учрежденной для оказания охранных услуг, зарегистрированной в установленном законом порядке и имеющей лицензию на осуществление частной охранной деятельности","Не круглосуточно",{"$f":"INDEX('Таблица 2'!A20:F22,MATCH(B17,'Таблица 2'!B20:B22,0),MATCH(A1,'Таблица 2'!A1:F1,0))","v":-3}]
["10. Категория здания (наружной установки) если категорируется","Г, ГН -для наружной установки",{"$f":"INDEX('Таблица 2'!A23:F28,MATCH(B18,'Таблица 2'!B23:B28,0),MATCH(A1,'Таблица 2'!A1:F1,0))","v":2}]
["11.  Электропроводка выполнена более 10 лет назад и не подвергалась капитальному ремонту","Да ",{"$f":"INDEX('Таблица 2'!A31:F32,MATCH(B19,'Таблица 2'!B31:B32,0),MATCH(A1,'Таблица 2'!A1:F1,0))","v":5}]
["12.  Вид электропроводки (за исключением зданий и сооружений  V степени огнестойкости)","открытая",{"$f":"INDEX('Таблица 2'!A33:F34,MATCH(B20,'Таблица 2'!B33:B34,0),MATCH(A1,'Таблица 2'!A1:F1,0))","v":2}]
["13.  Электрическое отопление (за исключением электрических котлов с контуром отопления)","нет",{"$f":"INDEX('Таблица 2'!A35:F36,MATCH(B21,'Таблица 2'!B35:B36,0),MATCH(A1,'Таблица 2'!A1:F1,0))","v":0}]
["14. Наличие печного отопления","Да ",{"$f":"INDEX('Таблица 2'!A37:F38,MATCH(B22,'Таблица 2'!B37:B38,0),MATCH(A1,'Таблица 2'!A1:F1,0))","v":10}]
["15. Категория объекта по потенциальной радиационной опасности","Не категорируется",{"$f":"INDEX('Таблица 2'!A39:F43,MATCH(B23,'Таблица 2'!B39:B43,0),MATCH(A1,'Таблица 2'!A1:F1,0))","v":"-"}]
[null,"∑ Iрпв = ",{"$f":"SUM(C9:C23)","v":32}]

{"sheet":"Iкрд для производств.объектов","index":10,"n_rows":35,"n_cols":3,"rows_kept":35,"cut":false,"hidden":true,"merged":[[6,0,6,2],[0,0,0,2],[1,0,1,2],[3,0,3,2],[5,0,5,2],[2,0,2,2],[4,0,4,2]]}
["Объекты сельскохозяйственного назначения"]
[]
[]
[]
["Расположен по адресу: "]
[]
["Определение критериев добросовестности  Iкрд"]
["Критерии добросовестности","Показатель      (критерий оценки)","Значение показателя Iкрд"]
["1. Наличие в отношении объекта (наружной установки) действующего предписания органа государственного пожарного надзора, содержащего сведения об неустраненных нарушениях установленных требований, предъявляемых к путям эвакуации, зонам безопасности для маломобильных групп населения, автоматическим системам противопожарной защиты (автоматические установки пожаротушения и пожарной сигнализации, система оповещения людей о пожаре и управления эвакуацией людей, система противодымной ветиляции)","Да",{"$f":"INDEX('Таблица 4'!A2:F3,MATCH(B9,'Таблица 4'!B2:B3,0),MATCH(A1,'Таблица 4'!A1:F1,0))","v":15}]
["2. Наличие в отношении объекта (наружной установки) действующего предписания органа государственного пожарного надзора, содержащего сведения об неустраненных нарушениях установленных требований, предъявляемых к  обеспечению деятельности пожарных подразделений ","Нет",{"$f":"INDEX('Таблица 4'!A4:F5,MATCH(B10,'Таблица 4'!B4:B5,0),MATCH(A1,'Таблица 4'!A1:F1,0))","v":0}]
["3. Наличие в отношении объекта (наружной установки) действующего предписания органа государственного пожарного надзора, содержащего сведения об неустраненных нарушениях установленных требований,   не вошедшх в пункты 1, 2 настоящей таблицы","Нет",{"$f":"INDEX('Таблица 4'!A6:F7,MATCH(B11,'Таблица 4'!B6:B7,0),MATCH(A1,'Таблица 4'!A1:F1,0))","v":0}]
["4.  Наличие в отношении объекта (наружной установки)  заключения о независимой оценки пожарного риска (аудита пожарной безопасности) с выводом о выполнении требований пожарной безопасности и соблюдении противопожарного режима","Нет",{"$f":"INDEX('Таблица 4'!A8:F9,MATCH(B12,'Таблица 4'!B8:B9,0),MATCH(A1,'Таблица 4'!A1:F1,0))","v":0}]
["5. Наличие на объекте (на территории) учреждений, осуществляющих экономическую деятельность, не соответствующую функциональному назначению","Нет",{"$f":"INDEX('Таблица 4'!A10:F11,MATCH(B13,'Таблица 4'!B10:B11,0),MATCH(A1,'Таблица 4'!A1:F1,0))","v":0}]
["6. Наличие сведений о проведении на объекте (наружной установке) перепланировки, реконструкции, капитального ремонта или технического перевооружения (реконструкции технологических установок)","Нет",{"$f":"INDEX('Таблица 4'!A12:F13,MATCH(B14,'Таблица 4'!B12:B13,0),MATCH(A1,'Таблица 4'!A1:F1,0))","v":0}]
["7. Предоставление заключения по оценке пожарного риска с обоснованием отступления от требований нормативных локументов по пожарной безопасности","Да",{"$f":"INDEX('Таблица 4'!A14:F15,MATCH(B15,'Таблица 4'!B14:B15,0),MATCH(A1,'Таблица 4'!A1:F1,0))","v":5}]
["8. Наличие автоматического дублирования сигнала в подразделение пожарной охраны с использованием системы передачи извещения о пожаре (за исключением зданий классов функциональной пожарной опасности Ф1.1, Ф1.2, Ф4.1, Ф4.2","Да",{"$f":"INDEX('Таблица 4'!A16:F17,MATCH(B16,'Таблица 4'!B16:B17,0),MATCH(A1,'Таблица 4'!A1:F1,0))","v":-5}]
["9. Наличие зарегистрированных случаев пожаров на объекте (наружной установке) за последние 5 лет (за исключением пожаров причиной которых является умышленное уничтожение или повреждения имущества)","Нет",{"$f":"INDEX('Таблица 4'!A18:F19,MATCH(B17,'Таблица 4'!B18:B19,0),MATCH(A1,'Таблица 4'!A1:F1,0))","v":0}]
["10. Наличие вступившего в законную силу постановления суда о назначении наказания в виде административного приостановления деятельности юридического лица и индивидуального предпринимателя за нарушения требований пожарной безопасности на объекте  (наружной установке) либо решения суда о приостановлении деятельности в соответствии с частью 2 статьи 1065 Гражданского кодекса Российской Федерации в течение последних 3 лет","Нет",{"$f":"INDEX('Таблица 4'!A20:F21,MATCH(B18,'Таблица 4'!B20:B21,0),MATCH(A1,'Таблица 4'!A1:F1,0))","v":0}]
["11. Наличие информации о вводе в эксплуатацию, либо фактическом функционировании объекта (наружной установки), получивших отрицательное заключение при согласовании специальных технических условий, отражающих специфику обеспечения его пожарной безопасности и содержащих комплекс необходимых инженерно-технических и организационных мероприятий по обеспечению пожарной безопасности, стандарта организации","Нет",{"$f":"INDEX('Таблица 4'!A22:F23,MATCH(B19,'Таблица 4'!B22:B23,0),MATCH(A1,'Таблица 4'!A1:F1,0))","v":0}]
["12. Непредставление в установленном порядке декларации пожарной безопасности в отношении объекта (наружной установки) для которых законодательством Российской Федерации о градостроительной деятельности предусмотрено проведение экспертизы проектной документации","Нет",{"$f":"INDEX('Таблица 4'!A24:F25,MATCH(B20,'Таблица 4'!B24:B25,0),MATCH(A1,'Таблица 4'!A1:F1,0))","v":0}]
["13.  Непредставление подконтрольным лицом ‎в срок, установленный в предостережении о недопустимости нарушения обязательных требований, уведомления о принятии мер на объекте по обеспечению соблюдения обязательных требований законодательства в области пожарной безопасности на объекте (наружной установке)","Нет",{"$f":"INDEX('Таблица 4'!A26:F27,MATCH(B21,'Таблица 4'!B26:B27,0),MATCH(A1,'Таблица 4'!A1:F1,0))","v":0}]
["14. Наличие сведений о ненадлежащей работе при пожаре на объекте (наружной установке) имеющихся  систем противопожарной защиты","Нет",{"$f":"INDEX('Таблица 4'!A28:F29,MATCH(B22,'Таблица 4'!B28:B29,0),MATCH(A1,'Таблица 4'!A1:F1,0))","v":0}]
["15. Наличие сведений о приостановлении действия лицензии юридического лица, индивидуального предпринимателя на осуществление деятельности по техническому обслуживанию и ремонту средств обеспечения пожарной безопасности вследствие грубых нарушений лицензионных требований на объекте (наружной установке)","Нет",{"$f":"INDEX('Таблица 4'!A30:F31,MATCH(B23,'Таблица 4'!B30:B31,0),MATCH(A1,'Таблица 4'!A1:F1,0))","v":0}]
["16. Предоставление контролируемым лицом договора страхования рисков причинения вреда (ущерба), объектом которого являются имущественные интересы контролируемого лица, связанные с его обязанностью возместить вред (ущерб) охраняемым законом ценностям, причиненный вследствие нарушения контролируемым лицом требований пожарной безопасности","Нет",{"$f":"INDEX('Таблица 4'!A32:F33,MATCH(B24,'Таблица 4'!B32:B33,0),MATCH(A1,'Таблица 4'!A1:F1,0))","v":0}]
["17. Предоставление в добровольном порядке декларации пожарной безопасности (статья 64 Федерального закона \"Технический регламент о требованиях пожарной безопасности\") в отношении объекта (наружной установки), для которого законодательством Российской Федерации о градостроительной деятельности не предусмотрено проведение экспертизы проектной документации","Нет",{"$f":"INDEX('Таблица 4'!A34:F35,MATCH(B25,'Таблица 4'!B34:B35,0),MATCH(A1,'Таблица 4'!A1:F1,0))","v":0}]
[null,"∑ Iкрд =",{"$f":"SUM(C9:C25)","v":15}]
[]
["Индекс индивидуализации подконтрольного лица","Uинд =∑ Iрпв+∑ Iкрд=",{"$f":"C26+'Iрпв для производств.объектов'!C24","v":47}]
[]
["Показатель тяжести потенциальных негативных последствий пожара с учетом индекса индивидуализации подконтрольного лица ","Кг.т.инд.=Uинд+Кгт = ",{"$f":"INDEX('Таблица со статистикой'!B3:J18,MATCH(A1,'Таблица со статистикой'!B3:B18,0),8)+C28","v":71.927466692424503}]
[]
["Категория риска объекта",null,{"$f":"IF(C30>=100,\"Чрезвычайно высокий\",IF(C30>=45,\"Высокий\",IF(C30>=20,\"Значительный\",IF(C30>=9,\"Средний\",IF(C30>=4,\"Умеренный\",\"Низкий\")))))","v":"Высокий"}]
[]
[null,{"$f":"TODAY()","v":"2024-12-18"}]
["Ф.И. О.  выполнившего расчет","Дата расчета","Подпись"]